bitfinex/quotes_ETHUSD_20250217
["timestamp","ask_amount","ask_price","bid_price","bid_amount"]
[1739809993434,0.7400601,2735.6,2734.9,3.65635]
[1739809993650,4.42681,2735.7,2735.0,3.65617]
[1739809993851,3.65564,2735.5,2735.0,3.65617]
[1739809994053,4.869491,2735.7,2735.0,3.65617]
[1739809994297,3.65562,2735.6,2735.0,3.65617]
[1739809994609,4.869491,2735.7,2735.2,3.65602]
[1739809994610,1.214081,2735.7,2735.2,3.65602]
[1739809994898,3.65514,2735.9,2735.2,3.65602]
[1739809995052,3.65514,2735.9,2735.2,3.65593]
[1739809995248,3.65546,2735.7,2735.1,3.65615]
[1739809995448,3.65518,2735.9,2735.4,3.65572]
[1739809995689,0.444872,2736.1,2735.6,3.6554]
[1739809995852,3.65486,2736.1,2735.4,8.12388]
[1739809996050,3.65486,2736.1,2735.5,3.65561]
[1739809996287,0.7941,2736.2,2735.5,3.65561]
[1739809996791,3.65493,2736.1,2735.3,3.65582]
[1739809996946,0.444903,2736.1,2735.1,0.8125]
[1739809997147,3.65533,2735.8,2735.1,4.46857]
[1739809997350,0.55,2736.1,2735.1,4.4686]
[1739809997586,0.55,2736.1,2735.1,4.46858]
[1739809997790,0.55,2736.1,2735.1,0.8125]
[1739809997985,3.6553,2735.8,2735.2,3.65596]
[1739809998210,4.02083,2735.8,2735.1,3.65605]
[1739809998412,0.36553,2735.8,2734.8,0.8125]
[1739809998574,0.55,2735.6,2734.5,3.6569]
[1739809998912,3.65611,2735.2,2734.6,3.65681]
[1739809999051,3.65653,2734.9,2734.4,0.8125]
[1739809999254,4.45073,2734.9,2734.2,3.65727]
[1739809999449,3.65657,2734.8,2734.2,3.65727]
[1739809999752,3.65682,2734.7,2734.2,3.65736]
[1739809999952,4.45069,2734.9,2734.2,3.65736]
[1739810000152,3.65671,2734.7,2734.2,3.65736]
[1739810000385,4.45065,2734.9,2733.9,0.8075]
[1739810000552,3.65665,2734.8,2734.2,3.65726]
[1739810000756,4.45073,2734.9,2733.9,1.37950338]
[1739810000957,0.7944,2735.3,2734.8,3.65648]
[1739810001166,3.65561,2735.6,2734.9,3.65631]
[1739810001397,4.44997,2735.6,2734.8,3.65647]
[1739810001597,3.65607,2735.2,2734.6,3.65678]
[1739810001801,3.65632,2735.0,2734.4,3.65698]
[1739810002172,0.55,2735.5,2734.2,3.65732]
[1739810002503,0.8094,2734.8,2733.8,4.37339726]
[1739810002663,0.8094,2734.8,2733.8,0.8276]
[1739810002871,3.65771,2734.0,2733.5,3.65824]
[1739810003097,3.65771,2734.0,2732.9,4.18569813]
[1739810003098,3.65793,2733.8,2733.3,3.65848]
[1739810003766,3.65764,2734.0,2733.3,3.65848]
[1739810004003,0.8094,2734.1,2733.3,0.448608]
[1739810004301,0.7845,2734.5,2733.3,0.448608]
[1739810004607,0.7845,2734.9,2733.4,3.8287]
[1739810004912,0.7845,2734.9,2733.5,3.0]
[1739810005079,4.44101,2734.9,2733.7,0.796]
[1739810005402,0.7834,2735.3,2734.1,3.0]
[1739810005611,0.7834,2735.7,2735.0,3.6563]
[1739810005817,3.65561,2735.6,2735.0,7.31251]
[1739810005968,0.7834,2736.0,2735.5,3.65561]
[1739810006163,4.43804,2736.3,2735.7,3.65537]
[1739810006369,3.65522,2735.9,2735.3,3.65587]
[1739810006703,3.65522,2735.9,2734.8,3.65644]
[1739810006704,3.65574,2735.5,2734.8,0.796]
[1739810006906,0.7834,2735.6,2734.8,0.796]
[1739810007105,0.7834,2735.9,2735.3,3.65581]
[1739810007278,3.65487,2736.1,2735.4,3.65576]
[1739810007485,0.7834,2736.2,2735.0,0.03655398]
[1739810007706,3.65488,2736.1,2735.4,3.65575]
[1739810007864,4.43822,2736.2,2735.2,4.45195]
[1739810008218,3.65512,2735.9,2735.4,3.65577]
[1739810008368,3.65545,2735.7,2735.0,3.65625]
[1739810008571,0.8055,2735.5,2734.5,0.74741097]
[1739810008772,0.8055,2735.5,2734.7,3.65661]
[1739810009011,4.46118,2735.5,2734.7,3.65665]
[1739810009309,0.8055,2735.9,2734.9,0.7665]
[1739810009618,0.8055,2735.9,2735.4,3.65572]
[1739810009768,0.8055,2735.9,2735.4,3.65564]
[1739810009974,3.6546,2736.3,2735.7,3.65536]
[1739810010172,0.8096,2736.4,2735.9,3.65497]
[1739810010581,3.65422,2736.6,2735.9,3.65497]
[1739810011099,3.65422,2736.6,2736.0,3.65496]
[1739810011295,4.465993,2736.6,2736.0,3.65486]
[1739810011501,0.8096,2736.7,2736.2,3.65468]
[1739810011719,0.8096,2736.7,2736.0,7.30978]
[1739810012018,0.8096,2736.7,2736.3,3.65455]
[1739810012175,3.65352,2737.1,2736.2,3.65463]
[1739810012176,0.8098,2737.0,2736.7,3.65399]
[1739810012517,0.8098,2737.0,2736.5,3.65422]
[1739810012731,0.8098,2737.0,2736.2,0.8195]
[1739810012929,3.65384,2736.9,2736.2,4.47411]
[1739810013229,0.8098,2737.0,2736.6,3.65404]
[1739810013773,0.464518,2737.5,2736.6,3.65404]
[1739810013774,0.815,2737.4,2736.6,3.65404]
[1739810014073,0.815,2737.8,2736.5,6.65419]
[1739810014273,3.65327,2737.3,2736.7,3.78100311]
[1739810014979,3.65347,2737.2,2736.7,0.12706311]
[1739810015275,0.55,2737.3,2736.7,0.12706311]
[1739810015530,3.65338,2737.2,2736.7,0.12706311]
[1739810015734,3.65338,2737.2,2736.7,3.78103311]
[1739810015896,3.65281,2737.7,2736.9,3.65367]
[1739810016101,3.65308,2737.5,2736.8,3.6538]
[1739810016418,3.653,2737.5,2736.7,0.50517342]
[1739810016713,3.653,2737.5,2736.9,3.6537]
[1739810016914,0.55,2737.7,2736.7,0.12706311]
[1739810017123,3.6535,2737.1,2736.7,0.12706311]
[1739810017340,0.815,2737.2,2736.7,0.12706311]
[1739810017617,0.55,2737.1,2736.7,0.12706311]
[1739810017916,4.46845,2737.2,2736.7,0.12706311]
[1739810018135,3.65359,2737.1,2736.7,0.12706311]
[1739810018342,3.6539,2736.8,2736.7,0.12706311]
[1739810018679,4.2039,2736.8,2736.7,0.12706311]
[1739810019299,5.0212,2736.8,2736.7,0.12706311]
[1739810020087,5.74197938,2736.8,2736.7,0.12706311]
[1739810020296,6.68155332,2736.8,2736.7,0.12706311]
[1739810020719,3.65376,2736.9,2736.7,0.12706311]
[1739810020889,3.6539,2736.8,2736.7,0.12706311]
[1739810021300,4.2039,2736.8,2736.7,0.12706311]
[1739810021499,4.9917,2736.8,2736.7,0.12706311]
[1739810022652,7.9917,2736.8,2736.7,3.11e-06]
[1739810022803,0.7878,2736.3,2735.2,0.03655522]
[1739810023156,1.3378,2736.3,2735.2,6.65596]
[1739810023333,3.65531,2735.8,2735.2,6.65592]
[1739810023657,3.65531,2735.8,2735.1,0.8271]
[1739810023658,3.65577,2735.4,2735.1,0.8271]
[1739810023864,3.65577,2735.4,2734.8,4.46998]
[1739810024022,3.65574,2735.5,2734.8,4.46998]
[1739810024023,4.44237,2736.3,2735.2,3.65592]
[1739810024228,4.44237,2736.3,2735.8,3.65523]
[1739810024229,0.7878,2736.3,2735.8,3.65523]
[1739810024460,5.98970243,2737.2,2735.8,3.65523]
[1739810024461,3.6542,2736.6,2735.8,3.65523]
[1739810024770,3.65424,2736.6,2736.0,4.45887]
[1739810024977,3.65365,2737.0,2736.0,0.804]
[1739810025114,3.65391,2736.8,2736.3,3.65454]
[1739810025460,3.6537,2737.0,2736.3,3.65454]
[1739810025461,7.30744,2737.0,2736.4,3.65442]
[1739810025662,0.7824,2737.1,2736.0,0.804]
[1739810025867,3.6545,2736.4,2736.0,0.804]
[1739810026016,3.65467,2736.3,2736.0,0.804]
[1739810026214,3.65467,2736.3,2735.7,3.7711]
[1739810026414,3.6543,2736.5,2736.0,3.65495]
[1739810026715,3.65497,2736.0,2735.7,0.7711]
[1739810026954,7.31005,2736.0,2735.7,0.7711]
[1739810027269,7.31005,2736.0,2735.5,3.0]
[1739810027270,3.65497,2736.0,2735.5,3.65563]
[1739810027417,0.55,2736.1,2735.7,3.65529]
[1739810027814,4.20484,2736.1,2735.6,3.65547]
[1739810028061,0.55,2736.1,2735.7,3.65533]
[1739810028210,3.65444,2736.4,2735.8,3.65522]
[1739810028411,3.65444,2736.4,2735.8,3.65516]
[1739810028717,3.65466,2736.3,2735.8,3.65516]
[1739810028972,0.795,2736.5,2735.9,3.65498]
[1739810028973,4.44939,2736.5,2735.9,3.65498]
[1739810029162,3.65413,2736.7,2736.1,4.48627]
[1739810029467,5.17754043,2737.6,2736.3,3.65449]
[1739810029468,3.65387,2736.9,2736.3,3.65449]
[1739810029612,3.65385,2736.9,2736.3,3.65449]
[1739810029818,3.65366,2737.0,2736.4,3.65441]
[1739810030024,3.65366,2737.0,2736.4,3.65435]
[1739810030249,3.65314,2737.4,2736.7,3.65401]
[1739810030454,3.65314,2737.4,2736.8,4.48532]
[1739810030671,3.65324,2737.3,2736.8,4.48532]
[1739810030828,0.8049,2738.3,2736.8,0.8315]
[1739810031027,3.65251,2737.9,2737.3,3.65315]
[1739810031249,3.6523,2738.0,2737.4,4.47092]
[1739810031613,3.65245,2737.9,2737.4,0.8179]
[1739810031816,3.65296,2737.5,2737.0,0.8103]
[1739810032074,3.6535,2737.1,2736.6,0.8103]
[1739810032231,3.65331,2737.3,2736.7,3.65392]
[1739810032431,3.65365,2737.0,2736.6,0.8103]
[1739810032635,3.65407,2736.7,2736.3,0.7966]
[1739810032832,3.65435,2736.5,2735.9,3.65499]
[1739810033054,3.65435,2736.5,2736.0,3.0]
[1739810033774,3.65417,2736.6,2736.0,6.65487]
[1739810033955,0.55,2736.6,2736.0,3.0]
[1739810034162,3.65487,2736.1,2735.6,4.45209]
[1739810034326,1.048119,2736.6,2735.6,4.45209]
[1739810034327,4.20482,2736.2,2735.6,0.7966]
[1739810034526,4.20482,2736.2,2735.6,4.45209]
[1739810034723,4.2043,2736.5,2735.6,0.7966]
[1739810035024,4.2047,2736.2,2735.7,3.65528]
[1739810035231,0.55,2736.2,2735.8,3.65522]
[1739810035429,4.20473,2736.2,2735.6,7.45201]
[1739810035629,3.65545,2735.7,2735.3,0.8027]
[1739810035861,7.31094,2735.7,2735.3,0.8027]
[1739810036081,0.55,2735.6,2734.9,3.6564]
[1739810036365,0.55,2735.6,2734.8,0.56073161]
[1739810036366,3.65567,2735.5,2735.0,0.8027]
[1739810036541,3.65567,2735.5,2735.0,3.8027]
[1739810036873,0.55,2735.6,2735.0,3.8027]
[1739810037044,0.55,2735.6,2735.0,1.6233892]
[1739810037239,3.65513,2735.9,2735.3,3.65581]
[1739810037457,3.65505,2736.0,2735.0,0.8027]
[1739810037663,0.764,2736.1,2735.0,0.8027]
[1739810037664,3.65557,2735.6,2735.0,4.45891]
[1739810037875,3.65559,2735.6,2735.0,0.8027]
[1739810038190,3.65537,2735.7,2735.1,3.65605]
[1739810038473,0.55,2735.6,2735.0,0.8027]
[1739810038638,0.55,2735.6,2735.0,4.45898]
[1739810038843,3.65564,2735.5,2735.0,4.45898]
[1739810039038,3.65579,2735.4,2735.0,0.8027]
[1739810039240,0.55,2735.7,2735.0,4.45895]
[1739810039478,3.6556,2735.6,2735.0,4.45895]
[1739810039644,3.65578,2735.4,2735.0,0.8027]
[1739810040048,0.55,2735.5,2735.0,0.8027]
[1739810040252,3.65523,2735.9,2735.2,3.65594]
[1739810040432,3.65537,2735.7,2735.2,3.65594]
[1739810040626,3.65537,2735.7,2735.0,4.45896]
[1739810040627,3.65564,2735.5,2735.1,3.0]
[1739810041468,3.65585,2735.4,2735.1,3.0]
[1739810041786,4.20644,2734.9,2734.8,0.11373361]
[1739810042641,4.99944,2734.9,2734.8,0.11373361]
[1739810042840,3.65714,2734.4,2734.1,0.7945]
[1739810043250,3.65714,2734.4,2733.8,4.45233]
[1739810043433,4.40047523,2735.2,2733.5,0.17880023]
[1739810043434,3.65777,2733.9,2733.5,0.17880023]
[1739810043637,3.65812,2733.7,2733.3,0.7823]
[1739810043891,0.55,2733.8,2733.3,4.44085]
[1739810044189,0.55,2733.8,2732.8,0.18604888]
[1739810044190,0.970781,2733.8,2732.9,0.7823]
[1739810044352,3.65892,2733.1,2732.5,3.65963]
[1739810044687,4.20855,2733.4,2732.7,3.65925]
[1739810044871,0.55,2733.2,2732.7,3.65925]
[1739810045244,3.65801,2733.8,2733.1,3.65873]
[1739810045437,3.65829,2733.6,2732.9,3.65901]
[1739810045638,0.55,2733.5,2733.0,3.65887]
[1739810045879,0.55,2733.5,2733.0,3.0]
[1739810046033,0.55,2733.5,2733.1,3.65881]
[1739810046257,0.55,2733.5,2733.0,3.0]
[1739810046463,1.55020098,2734.0,2733.0,3.0]
[1739810046464,5.20788098,2734.0,2733.0,1.031802]
[1739810046658,1.160314,2734.4,2733.3,3.0]
[1739810046915,1.160314,2734.4,2734.1,3.65747]
[1739810046916,0.7946,2734.4,2734.1,3.65747]
[1739810047069,3.65681,2734.7,2734.1,3.65747]
[1739810047268,0.7946,2734.8,2733.9,3.65772]
[1739810047467,3.65748,2734.2,2733.5,4.75629]
[1739810047695,3.6578,2733.9,2733.0,3.65888]
[1739810047900,3.658,2733.8,2733.1,3.65871]
[1739810048099,0.55,2734.0,2732.8,0.7521]
[1739810048421,4.20872,2733.2,2732.8,0.7521]
[1739810048560,3.65893,2733.1,2732.5,3.65955]
[1739810048763,0.55,2733.2,2732.5,3.65955]
[1739810049005,4.20872,2733.2,2732.6,3.6595]
[1739810049309,3.65888,2733.1,2732.5,3.65955]
[1739810049529,0.55,2733.2,2732.4,0.8245]
[1739810049804,0.55,2733.2,2732.4,4.48422]
[1739810050062,4.4883,2733.7,2732.5,0.03659198]
[1739810050188,3.65788,2733.9,2733.3,4.43808]
[1739810050387,4.48777,2734.1,2733.3,4.43806]
[1739810050616,0.55,2734.0,2733.5,3.65823]
[1739810050788,0.55,2734.0,2733.3,4.43797]
[1739810050994,4.45336,2734.5,2733.8,3.65788]
[1739810051214,3.65697,2734.5,2733.8,0.365788]
[1739810051418,3.65685,2734.6,2734.0,3.65756]
[1739810051615,3.65728,2734.3,2733.8,3.0]
[1739810052125,0.7963,2734.8,2733.6,3.0]
[1739810052330,3.65679,2734.7,2733.8,0.8195]
[1739810052515,3.65686,2734.6,2734.0,3.65752]
[1739810052920,4.207,2734.5,2733.9,6.65773]
[1739810053127,0.55,2734.5,2733.9,3.65774]
[1739810053294,0.55,2734.5,2733.8,0.8195]
[1739810053496,3.65771,2734.0,2733.4,0.8326]
[1739810053694,0.55,2734.0,2733.4,0.8326]
[1739810053923,3.65679,2734.7,2734.1,3.65747]
[1739810054195,8.212,2736.0,2734.7,3.65662]
[1739810054196,0.7579,2735.3,2734.7,3.65662]
[1739810054401,3.65625,2735.1,2734.6,3.0]
[1739810054728,3.65667,2734.8,2734.1,1.138247]
[1739810054905,3.65643,2735.0,2734.2,3.65727]
[1739810055105,3.65649,2734.9,2734.4,3.65702]
[1739810055501,0.731254,2735.0,2734.4,3.65708]
[1739810055703,4.4139,2735.3,2734.7,3.65667]
[1739810055907,0.7931,2735.7,2735.0,3.45626]
[1739810056149,3.65559,2735.6,2734.9,3.65635]
[1739810056359,4.44858,2735.7,2735.0,3.65618]
[1739810056562,0.7931,2735.7,2734.8,3.7743]
[1739810056850,0.7931,2735.7,2734.8,0.7743]
[1739810057060,3.65612,2735.2,2734.6,3.65682]
[1739810057217,3.65612,2735.2,2734.4,0.7941]
[1739810057218,4.20617,2735.1,2734.4,4.45119]
[1739810057404,3.65614,2735.2,2734.5,0.445119]
[1739810057608,3.65572,2735.5,2734.9,3.65636]
[1739810057849,3.65572,2735.5,2734.5,0.445119]
[1739810057850,0.55,2735.6,2735.2,3.65602]
[1739810058050,0.74307123,2736.0,2734.5,0.48167934]
[1739810058051,3.65528,2735.8,2734.5,0.48167934]
[1739810058254,3.65517,2735.9,2735.1,3.65606]
[1739810058552,0.55,2735.6,2734.9,6.65634]
[1739810058768,3.65602,2735.3,2734.7,3.65662]
[1739810058913,3.65602,2735.3,2734.8,3.0]
[1739810059232,4.20559,2735.6,2734.9,3.65632]
[1739810059437,3.65571,2735.5,2734.9,4.021952]
[1739810059655,3.65599,2735.3,2734.8,3.0]
[1739810059861,3.65618,2735.1,2734.4,0.7941]
[1739810060059,3.65651,2734.9,2734.4,0.7941]
[1739810060577,4.20638,2735.0,2734.4,0.7941]
[1739810060715,0.55,2735.0,2734.1,4.60643613]
[1739810060911,3.65665,2734.8,2734.2,3.6573]
[1739810061216,4.20653,2734.9,2734.3,3.65714]
[1739810061419,3.65666,2734.8,2734.3,3.65714]
[1739810061620,0.55,2734.8,2734.1,0.7647]
[1739810061815,3.65764,2734.0,2733.5,0.7647]
[1739810062129,3.65764,2734.0,2733.5,4.42301]
[1739810062328,3.65764,2734.0,2733.5,5.24987662]
[1739810062531,0.55,2734.1,2733.5,5.24987662]
[1739810062731,0.7931,2735.5,2734.6,3.65677]
[1739810062963,3.65646,2734.9,2734.2,3.6573]
[1739810063159,3.65698,2734.5,2734.2,0.7557]
[1739810063659,0.55,2734.6,2734.2,0.7557]
[1739810063846,3.65577,2735.4,2734.2,3.7557]
[1739810064046,3.65615,2735.2,2734.6,3.65682]
[1739810064351,4.00083,2736.1,2734.5,3.65691]
[1739810064352,3.65592,2735.3,2734.8,0.7557]
[1739810064551,3.65593,2735.3,2734.8,4.41218]
[1739810064954,7.31192,2735.3,2734.8,0.7557]
[1739810065190,0.8016,2735.9,2734.8,0.7557]
[1739810065355,3.6554,2735.7,2735.0,3.6563]
[1739810065555,7.31086,2735.7,2735.1,3.65609]
[1739810065855,0.55,2735.6,2735.1,3.65609]
[1739810066052,4.45679,2735.9,2735.2,3.65601]
[1739810066280,3.65448,2736.4,2735.4,0.8275]
[1739810066494,0.8288,2736.7,2735.5,3.0]
[1739810066792,3.65425,2736.6,2735.9,3.65501]
[1739810066949,3.65425,2736.6,2735.9,4.768797]
[1739810067149,0.8288,2736.7,2736.1,3.6547]
[1739810067401,3.65406,2736.7,2736.1,3.6547]
[1739810067568,3.65392,2736.8,2736.1,3.6547]
[1739810067913,3.65392,2736.8,2736.2,3.65469]
[1739810068055,3.6535,2737.2,2736.6,3.65407]
[1739810068254,3.65364,2737.0,2736.5,3.0]
[1739810068750,3.65364,2737.0,2736.1,0.52824447]
[1739810068751,3.65452,2736.4,2735.8,3.65512]
[1739810068959,0.7997,2737.2,2736.2,3.65468]
[1739810069261,3.65403,2736.8,2736.2,3.65468]
[1739810069450,3.65403,2736.8,2736.0,4.45961]
[1739810069451,0.7997,2737.2,2736.0,0.8047]
[1739810069650,3.6547,2736.2,2735.6,0.7598]
[1739810069852,4.20459,2736.3,2735.6,4.41521]
[1739810070151,4.20459,2736.3,2735.6,4.90035991]
[1739810070355,3.65448,2736.4,2735.7,3.0]
[1739810070556,3.65448,2736.4,2735.8,3.65522]
[1739810070787,3.65459,2736.3,2735.8,3.65522]
[1739810070986,0.7935,2736.5,2735.6,1.24494991]
[1739810071185,0.7935,2736.5,2735.6,0.7598]
[1739810071186,3.65508,2736.0,2735.6,0.7598]
[1739810071454,3.65563,2735.5,2735.4,0.0912891]
[1739810072250,4.4353,2735.7,2735.4,0.0912891]
[1739810072454,0.55,2735.6,2735.4,0.0912891]
[1739810072679,4.20563,2735.5,2735.4,0.0912891]
[1739810073991,3.65673,2734.7,2734.2,0.97908687]
[1739810074197,3.65673,2734.7,2734.2,0.7997]
[1739810074385,3.65699,2734.5,2734.2,0.7997]
[1739810074582,3.65726,2734.3,2733.9,0.8291]
[1739810074813,3.65745,2734.2,2733.9,0.8291]
[1739810075017,0.55,2734.4,2733.9,3.8291]
[1739810075224,0.55,2734.4,2734.0,3.65755]
[1739810075721,3.65738,2734.2,2733.9,0.8291]
[1739810075925,3.65738,2734.2,2733.6,1.1397]
[1739810076127,3.65752,2734.1,2733.6,1.1397]
[1739810076420,3.65738,2734.2,2733.7,3.65804]
[1739810076726,3.65772,2734.0,2733.3,3.65848]
[1739810076884,0.55,2734.1,2733.4,3.65841]
[1739810077082,0.55,2734.1,2733.3,5.211509]
[1739810077288,4.20753,2734.1,2733.5,3.65826]
[1739810077514,3.65753,2734.1,2733.5,3.65826]
[1739810077720,3.65769,2734.0,2733.5,3.65826]
[1739810077920,3.65769,2734.0,2733.4,3.65837]
[1739810078128,3.65744,2734.2,2733.5,3.65819]
[1739810078426,3.65744,2734.2,2733.4,4.5453579]
[1739810078427,4.20717,2734.4,2733.7,3.658]
[1739810078643,3.65689,2734.6,2733.7,3.0]
[1739810078843,3.65719,2734.4,2733.7,3.0]
[1739810078997,4.43254,2734.8,2734.2,3.65734]
[1739810079197,3.65632,2735.0,2734.2,4.09287788]
[1739810079429,3.65632,2735.0,2734.2,4.09286788]
[1739810079631,3.6563,2735.0,2734.1,3.0]
[1739810079794,0.55,2734.1,2733.7,0.8213]
[1739810080002,3.65765,2734.0,2733.4,4.65832339]
[1739810080202,3.65765,2734.0,2733.4,4.47965]
[1739810080433,3.65764,2734.0,2733.5,3.65822]
[1739810080810,0.55,2734.1,2733.4,0.8213]
[1739810081146,0.55,2734.1,2733.2,0.73687677]
[1739810081147,3.658,2733.8,2733.2,3.65867]
[1739810081450,0.55,2733.7,2733.3,3.65856]
[1739810081954,0.8244,2734.2,2733.3,0.73173]
[1739810082136,0.8244,2734.2,2733.3,3.65855]
[1739810082137,3.65796,2733.8,2733.3,3.65855]
[1739810082334,0.55,2733.9,2733.3,3.65855]
[1739810082529,3.65796,2733.8,2733.2,7.31722]
[1739810082730,4.20783,2733.9,2733.3,3.6585]
[1739810082915,3.65806,2733.7,2733.2,3.6586]
[1739810083122,4.20783,2733.9,2733.3,3.65844]
[1739810083324,3.65783,2733.9,2733.3,3.65844]
[1739810083516,4.20796,2733.8,2733.2,3.6586]
[1739810083767,4.20796,2733.8,2733.1,3.65884]
[1739810083908,4.20796,2733.8,2733.3,3.65854]
[1739810084117,7.86597,2733.8,2733.1,8.065504]
[1739810084434,3.65759,2734.1,2733.5,3.6583]
[1739810084655,3.65773,2734.0,2733.5,3.65823]
[1739810084948,3.65728,2734.3,2733.7,3.65801]
[1739810085156,3.65705,2734.5,2733.8,0.441581]
[1739810085315,3.65733,2734.3,2733.6,3.7578]
[1739810085522,3.65741,2734.2,2733.7,3.65797]
[1739810085744,3.65703,2734.5,2733.6,0.7578]
[1739810086055,3.65727,2734.3,2733.6,4.41589]
[1739810086254,3.65772,2734.0,2733.6,0.7578]
[1739810086863,4.20744,2734.2,2733.6,0.7578]
[1739810087069,7.86489,2734.2,2733.7,3.0]
[1739810087221,4.20744,2734.2,2733.7,3.0]
[1739810087420,3.65764,2734.1,2733.6,3.7578]
[1739810087766,4.20744,2734.2,2733.6,11.07407]
[1739810087929,3.65692,2734.6,2733.6,1.86886498]
[1739810088131,3.65679,2734.7,2734.1,3.65739]
[1739810088326,4.42055,2734.8,2734.1,3.65739]
[1739810088566,0.7639,2734.8,2733.9,3.65769]
[1739810088716,3.65718,2734.4,2733.7,6.65795]
[1739810088918,3.6574,2734.2,2733.7,6.65795]
[1739810089155,7.31441,2734.4,2733.8,6.6579]
[1739810089468,3.65724,2734.3,2733.8,3.0]
[1739810089636,3.65737,2734.2,2733.7,0.741575]
[1739810090056,3.65754,2734.1,2733.7,0.741575]
[1739810090219,3.65724,2734.3,2733.7,0.741575]
[1739810090560,3.65743,2734.2,2733.6,0.7578]
[1739810090865,3.65762,2734.1,2733.5,7.31644]
[1739810091013,0.55,2734.1,2733.6,3.65809]
[1739810091217,4.20753,2734.1,2733.6,3.65809]
[1739810091666,4.20753,2734.1,2733.5,3.0]
[1739810091870,3.65772,2734.0,2733.5,3.0]
[1739810092162,3.65785,2733.9,2733.4,3.18472468]
[1739810092332,3.65772,2734.0,2733.5,7.31655]
[1739810092858,3.6579,2733.9,2733.4,0.95080415]
[1739810093034,3.65793,2733.8,2733.4,3.0]
[1739810093373,0.55,2733.9,2733.4,6.65842]
[1739810093667,0.55,2733.9,2733.4,3.65842]
[1739810093867,4.20787,2733.9,2733.4,3.65842]
[1739810094155,3.6577,2734.0,2733.5,3.65824]
[1739810094316,0.55,2733.9,2733.4,3.65842]
[1739810094519,0.55,2733.9,2733.4,3.65836]
[1739810094829,3.65794,2733.8,2733.4,3.65836]
[1739810095254,4.20778,2733.9,2733.4,3.65836]
[1739810095437,4.20778,2733.9,2733.3,0.8176]
[1739810095438,3.65744,2734.2,2733.3,0.8176]
[1739810095628,7.31494,2734.2,2733.4,0.03657988]
[1739810095844,3.65767,2734.0,2733.5,3.65822]
[1739810096053,3.65767,2734.0,2733.5,3.6582]
[1739810096255,3.65767,2734.0,2733.5,3.65823]
[1739810096256,3.65765,2734.0,2733.5,3.65823]
[1739810096418,4.20759,2734.1,2733.6,3.6581]
[1739810096753,4.20759,2734.1,2733.4,4.10960599]
[1739810096953,4.20788,2733.9,2733.4,3.65838]
[1739810097376,3.65769,2734.0,2733.5,3.65824]
[1739810097574,3.65769,2734.0,2733.4,3.65838]
[1739810097575,3.65759,2734.1,2733.4,3.65844]
[1739810097721,3.65765,2734.0,2733.5,3.65823]
[1739810097922,3.65778,2733.9,2733.3,0.8176]
[1739810098118,3.65747,2734.2,2733.6,3.6581]
[1739810098323,3.65765,2734.0,2733.6,3.6581]
[1739810098647,4.20755,2734.1,2733.6,3.65809]
[1739810099051,7.86515,2734.1,2733.6,3.65808]
[1739810099356,3.65778,2733.9,2733.4,7.31672]
[1739810099559,4.20755,2734.1,2733.4,3.65835]
[1739810099777,4.46394,2734.0,2733.5,3.65823]
[1739810099918,0.8062,2734.0,2733.4,0.79325114]
[1739810100127,0.8062,2734.0,2733.3,3.65857]
[1739810100128,3.65799,2733.8,2733.3,3.65857]
[1739810100361,4.20786,2733.9,2733.5,3.65824]
[1739810100362,3.65779,2733.9,2733.5,3.65824]
[1739810100656,3.65824,2733.6,2733.1,4.406794]
[1739810100875,0.55,2733.7,2733.4,3.65844]
[1739810101043,4.46391,2734.0,2733.4,3.65833]
[1739810101224,3.65765,2734.0,2733.6,3.65809]
[1739810101670,0.55,2734.1,2733.7,3.65797]
[1739810101970,3.6577,2734.0,2733.6,3.65809]
[1739810102126,3.6577,2734.0,2733.4,3.65833]
[1739810102326,4.20758,2734.1,2733.6,3.65815]
[1739810102957,0.55,2734.1,2733.7,3.65801]
[1739810103131,0.55,2734.1,2733.6,3.65816]
[1739810103344,3.65785,2733.9,2733.4,4.324193]
[1739810103538,3.65785,2733.9,2733.4,4.324183]
[1739810103785,3.65791,2733.8,2733.4,4.324183]
[1739810104089,4.20745,2734.2,2733.5,3.6583]
[1739810104250,3.65779,2733.9,2733.4,0.665833]
[1739810104433,4.20777,2733.9,2733.3,3.65849]
[1739810104634,3.65797,2733.8,2733.3,3.65849]
[1739810104874,3.65779,2733.9,2733.4,6.65837]
[1739810105255,4.20765,2734.0,2733.5,3.65824]
[1739810105498,0.55,2734.0,2733.0,0.8201]
[1739810105777,3.65864,2733.3,2732.8,3.65919]
[1739810105991,0.55,2733.3,2732.8,3.65919]
[1739810106277,3.65857,2733.4,2732.8,3.65912]
[1739810106604,3.65857,2733.4,2732.6,0.08519829]
[1739810106605,3.65919,2732.9,2732.6,0.08519829]
[1739810107262,4.20938,2732.7,2732.6,0.08519829]
[1739810107461,0.55,2732.6,2732.1,0.005]
[1739810107664,1.3538,2732.7,2732.1,0.005]
[1739810107665,3.65973,2732.5,2732.1,0.005]
[1739810107974,5.01385,2732.2,2732.1,0.005]
[1739810108186,3.65992,2732.3,2732.1,0.005]
[1739810108682,3.66005,2732.2,2732.1,0.005]
[1739810108885,0.7811,2732.5,2732.1,0.005]
[1739810109105,3.66001,2732.3,2732.1,0.005]
[1739810109388,4.44079,2732.5,2732.1,0.005]